bitfinex-derivatives/quotes_BTCF0:USTF0_20220103
["timestamp","ask_amount","ask_price","bid_price","bid_amount"]
[1641200083915,0.09057144,46956.0,46955.0,0.18]
[1641200084816,0.09057144,46961.0,46955.0,0.18]
[1641200085012,0.09057144,46961.0,46955.0,0.373]
[1641200085516,0.09057144,46961.0,46957.0,0.14033567]
[1641200086414,0.09057144,46961.0,46958.0,0.60363189]
[1641200087115,1.5304449,46966.0,46958.0,0.79963189]
[1641200087316,1.5304449,46966.0,46958.0,0.196]
[1641200088416,1.5304449,46966.0,46957.0,0.14033567]
[1641200088615,0.09057144,46966.0,46957.0,0.14033567]
[1641200089015,0.09057144,46966.0,46957.0,0.33433567]
[1641200090515,0.09057144,46966.0,46957.0,0.14033567]
[1641200090916,0.09057144,46966.0,46957.0,0.33433567]
[1641200092315,0.09057144,46966.0,46957.0,0.14033567]
[1641200093117,0.09057144,46966.0,46957.0,0.33433567]
[1641200094418,0.09057144,46966.0,46957.0,0.14033567]
[1641200094820,0.09057144,46966.0,46962.0,0.02129448]
[1641200095019,0.09057144,46966.0,46962.0,0.08106448]
[1641200097121,0.09057144,46966.0,46962.0,0.27806448]
[1641200098421,0.09057144,46966.0,46962.0,0.08106448]
[1641200099120,0.09057144,46966.0,46962.0,0.27806448]
[1641200100522,0.09057144,46966.0,46962.0,0.08106448]
[1641200101023,0.09057144,46966.0,46962.0,0.27806448]
[1641200102923,0.09057144,46966.0,46962.0,0.08106448]
[1641200103119,0.09057144,46966.0,46962.0,0.27606448]
[1641200104323,0.09057144,46966.0,46962.0,0.08106448]
[1641200105125,0.09057144,46966.0,46962.0,0.25777]
[1641200105926,0.09057144,46966.0,46965.0,0.02129293]
[1641200107130,0.09057144,46966.0,46965.0,0.21329293]
[1641200108330,0.09057144,46966.0,46965.0,0.192]
[1641200108531,0.09057144,46966.0,46964.0,0.009794]
[1641200108934,0.93160193,46966.0,46964.0,0.206794]
[1641200109135,0.93160193,46966.0,46965.0,0.02129216]
[1641200109938,0.09057144,46966.0,46965.0,0.02129216]
[1641200110337,0.09057144,46966.0,46965.0,0.86656874]
[1641200111036,0.09057144,46966.0,46965.0,1.06056874]
[1641200111237,0.09057144,46966.0,46965.0,0.21529216]
[1641200112238,0.09057144,46966.0,46965.0,0.62506581]
[1641200113036,0.09057144,46966.0,46965.0,0.82006581]
[1641200114037,0.09057144,46966.0,46965.0,0.21629216]
[1641200115141,0.09057144,46966.0,46965.0,0.21529216]
[1641200115542,0.09057144,46966.0,46965.0,0.57756114]
[1641200116445,0.09057144,46966.0,46965.0,0.21529216]
[1641200116641,0.09057144,46966.0,46965.0,0.81906581]
[1641200116943,0.09057144,46966.0,46965.0,0.82006581]
[1641200117442,0.09057144,46966.0,46965.0,1.18233418]
[1641200117645,0.09057144,46966.0,46965.0,0.57856053]
[1641200118045,0.09057144,46966.0,46965.0,0.21629216]
[1641200118244,0.09057144,46966.0,46965.0,0.82006581]
[1641200118443,0.09057144,46966.0,46965.0,0.62506581]
[1641200119048,0.09057144,46966.0,46965.0,0.82006581]
[1641200119245,0.09057144,46966.0,46965.0,0.21629216]
[1641200120046,0.09057144,46966.0,46965.0,0.82006581]
[1641200120446,0.09057144,46966.0,46965.0,0.62506581]
[1641200121045,0.09057144,46966.0,46965.0,0.82006581]
[1641200122345,0.09057144,46966.0,46965.0,0.62506581]
[1641200123147,0.09057144,46966.0,46965.0,0.82006581]
[1641200124450,0.09057144,46966.0,46965.0,0.62506581]
[1641200125049,0.09057144,46966.0,46965.0,0.81906581]
[1641200126250,0.09057144,46966.0,46965.0,0.62506581]
[1641200127053,0.09057144,46966.0,46965.0,0.82006581]
[1641200128354,0.09057144,46966.0,46965.0,0.62506581]
[1641200129054,0.09057144,46966.0,46965.0,0.82006581]
[1641200129255,0.09057144,46966.0,46965.0,0.21629216]
[1641200130056,0.09057144,46966.0,46965.0,0.82006581]
[1641200130457,0.09057144,46966.0,46965.0,0.62506581]
[1641200131058,0.09057144,46966.0,46965.0,0.82006581]
[1641200132463,0.09057144,46966.0,46965.0,0.62506581]
[1641200133061,0.09057144,46966.0,46965.0,0.82006581]
[1641200133461,0.09057144,46966.0,46965.0,0.21629216]
[1641200134463,0.09057144,46966.0,46965.0,0.02129216]
[1641200135064,0.09057144,46966.0,46965.0,0.21529216]
[1641200135262,1.5304449,46968.0,46965.0,0.21529216]
[1641200135963,1.5304449,46968.0,46966.0,0.362233]
[1641200137063,1.5304449,46968.0,46966.0,0.557233]
[1641200137265,0.09057144,46968.0,46967.0,0.362233]
[1641200138275,0.09057144,46968.0,46966.0,0.195]
[1641200138477,0.09057144,46968.0,46966.0,0.60377365]
[1641200139176,0.09057144,46968.0,46966.0,0.79877365]
[1641200140180,0.09057144,46968.0,46967.0,0.001]
[1641200140379,0.09057144,46968.0,46965.0,0.86656874]
[1641200140577,0.09057144,46968.0,46967.0,0.001]
[1641200141177,0.09057144,46968.0,46967.0,0.193]
[1641200141578,0.09057144,46968.0,46967.0,0.194]
[1641200141778,0.09057144,46968.0,46967.0,0.193]
[1641200141978,0.09057144,46968.0,46967.0,0.194]
[1641200142180,0.09057144,46968.0,46967.0,0.193]
[1641200142380,0.09057144,46968.0,46967.0,0.194]
[1641200142682,0.09057144,46968.0,46967.0,0.79767787]
[1641200144080,0.09057144,46968.0,46967.0,0.194]
[1641200144480,0.09057144,46968.0,46967.0,0.001]
[1641200145080,0.09057144,46968.0,46967.0,0.193]
[1641200145480,0.09057144,46968.0,46967.0,0.79667143]
[1641200146280,1.43987346,46971.0,46967.0,0.79667143]
[1641200146480,1.43987346,46971.0,46967.0,0.60367143]
[1641200147080,1.43987346,46971.0,46967.0,0.79567143]
[1641200147681,1.43987346,46971.0,46969.0,0.3622026]
[1641200148984,0.18,46970.0,46969.0,0.3622026]
[1641200149182,0.23939,46970.0,46969.0,0.5522026]
[1641200150491,0.32996144,46970.0,46965.0,0.3622026]
[1641200150685,0.18,46967.0,46965.0,0.3622026]
[1641200151088,0.18,46967.0,46965.0,0.5532026]
[1641200151487,1.53758473,46966.0,46965.0,0.191]
[1641200152486,1.53758473,46966.0,46964.0,0.3622026]
[1641200153087,1.53758473,46966.0,46964.0,0.5542026]
[1641200153285,1.44701329,46965.0,46964.0,0.5542026]
[1641200153486,1.44701329,46965.0,46964.0,0.192]
[1641200154386,1.44701329,46965.0,46963.0,0.3622026]
[1641200154587,0.09057144,46966.0,46963.0,0.3622026]
[1641200154786,0.09057144,46966.0,46962.0,0.3622026]
[1641200155287,0.09057144,46966.0,46963.0,0.192]
[1641200155487,1.4478253,46965.0,46963.0,0.5542026]
[1641200156486,1.4478253,46965.0,46963.0,0.3622026]
[1641200156887,1.4478253,46964.0,46962.0,0.3622026]
[1641200157087,1.4478253,46964.0,46963.0,0.192]
[1641200157886,0.09057144,46966.0,46963.0,0.192]
[1641200158486,0.09057144,46966.0,46959.0,0.38349812]
[1641200159086,0.09057144,46966.0,46959.0,0.57549812]
[1641200159286,0.09057144,46966.0,46959.0,0.5542026]
[1641200159686,0.09057144,46966.0,46959.0,0.57549818]
[1641200160087,0.09057144,46966.0,46960.0,0.3622026]
[1641200160989,0.27057144,46967.0,46959.0,0.38349818]
[1641200161189,0.27057144,46967.0,46960.0,0.192]
[1641200161787,0.09057144,46966.0,46960.0,0.192]
[1641200162587,0.27057144,46966.0,46959.0,0.38349818]
[1641200163187,0.09057144,46965.0,46959.0,0.57549818]
[1641200164491,0.09057144,46965.0,46959.0,0.38349818]
[1641200165292,0.09057144,46965.0,46959.0,0.57549818]
[1641200166591,0.09057144,46965.0,46959.0,0.38349818]
[1641200166793,1.53839674,46967.0,46959.0,0.38349818]
[1641200166993,0.18,46966.0,46959.0,0.38349818]
[1641200167194,0.18,46966.0,46959.0,0.57549818]
[1641200167796,0.09057144,46965.0,46959.0,0.57549818]
[1641200168096,0.09057144,46965.0,46959.0,0.5542026]
[1641200168697,0.18,46964.0,46959.0,0.5542026]
[1641200169097,0.09057144,46965.0,46959.0,0.3622026]
[1641200169397,0.09057144,46963.0,46959.0,0.192]
[1641200169796,0.18,46966.0,46959.0,0.5542026]
[1641200170597,0.18,46966.0,46959.0,0.3622026]
[1641200170797,0.09057144,46965.0,46959.0,0.3622026]
[1641200171200,0.09057144,46965.0,46959.0,0.5542026]
[1641200172403,1.71839674,46967.0,46959.0,0.5542026]
[1641200172598,1.71839674,46967.0,46959.0,0.3622026]
[1641200172798,1.53839674,46967.0,46959.0,0.3622026]
[1641200173001,0.09057144,46966.0,46959.0,0.3622026]
[1641200173199,0.09057144,46966.0,46959.0,0.5542026]
[1641200174398,1.4478253,46967.0,46959.0,0.5542026]
[1641200174399,1.53839674,46967.0,46959.0,0.5542026]
[1641200174599,1.53839674,46967.0,46959.0,0.3622026]
[1641200175199,1.53839674,46967.0,46959.0,0.5542026]
[1641200176302,1.71839674,46967.0,46959.0,0.5542026]
[1641200176507,1.71839674,46967.0,46959.0,0.3622026]
[1641200177103,1.53839674,46967.0,46959.0,0.3622026]
[1641200177304,1.53839674,46967.0,46959.0,0.5542026]
[1641200177504,0.09057144,46966.0,46959.0,0.5542026]
[1641200179008,1.4478253,46965.0,46962.0,0.3622026]
[1641200180809,1.4478253,46966.0,46962.0,0.3622026]
[1641200181208,1.4478253,46966.0,46962.0,0.5582026]
[1641200182311,0.18,46965.0,46962.0,0.5582026]
[1641200182512,0.26884,46965.0,46962.0,0.5582026]
[1641200182713,0.26884,46965.0,46962.0,0.3622026]
[1641200182911,0.14033567,46963.0,46962.0,0.3622026]
[1641200183311,1.76816097,46963.0,46962.0,0.175]
[1641200183512,1.76916097,46963.0,46962.0,0.175]
[1641200184411,1.58916097,46963.0,46962.0,0.175]
[1641200184613,0.23190711,46963.0,46959.0,0.3622026]
[1641200184812,0.23090711,46963.0,46958.0,0.3622026]
[1641200185012,0.18,46960.0,46958.0,0.3622026]
[1641200185211,0.23090711,46963.0,46959.0,0.194]
[1641200185413,0.18,46960.0,46959.0,0.194]
[1641200186313,0.27057144,46960.0,46959.0,0.194]
[1641200186715,0.27057144,46960.0,46957.0,0.3622026]
[1641200187314,0.09057144,46960.0,46957.0,0.5582026]
[1641200188016,0.09057144,46959.0,46957.0,0.5582026]
[1641200188618,1.44895934,46961.0,46958.0,0.3622026]
[1641200189322,1.44895934,46961.0,46958.0,0.5562026]
[1641200189520,1.44895934,46961.0,46958.0,0.194]
[1641200190122,1.44895934,46961.0,46958.0,0.5562026]
[1641200190621,0.18,46960.0,46958.0,0.3622026]
[1641200191121,1.44895934,46961.0,46958.0,0.3622026]
[1641200191322,1.44895934,46961.0,46958.0,0.5582026]
[1641200191521,0.09057144,46959.0,46958.0,0.5582026]
[1641200192124,1.44895934,46961.0,46958.0,0.5582026]
[1641200192625,1.44895934,46961.0,46958.0,0.3622026]
[1641200193027,0.09057144,46962.0,46956.0,0.60367143]
[1641200193028,0.09057144,46962.0,46956.0,0.3622026]
[1641200193327,0.09057144,46962.0,46958.0,0.195]
[1641200194726,0.09057144,46962.0,46957.0,0.02129663]
[1641200195127,0.09057144,46962.0,46959.0,0.02129574]
[1641200195828,0.09057144,46962.0,46959.0,0.38349834]
[1641200196027,0.09057144,46962.0,46959.0,0.3622026]
[1641200196226,0.09057144,46962.0,46959.0,0.38349834]
[1641200197029,0.09057144,46962.0,46961.0,0.3622026]
[1641200197228,0.09057144,46962.0,46961.0,0.4504826]
[1641200198130,0.09057144,46962.0,46961.0,0.08828]
[1641200199430,0.09057144,46962.0,46961.0,0.28328]
[1641200200831,0.09057144,46962.0,46961.0,0.08828]
[1641200201435,0.09057144,46962.0,46961.0,0.28428]
[1641200202635,0.09057144,46962.0,46961.0,0.08828]
[1641200202835,0.09057144,46962.0,46960.0,0.3622026]
[1641200203435,0.09057144,46962.0,46960.0,0.5572026]
[1641200204038,0.09057144,46962.0,46961.0,0.3622026]
[1641200205339,0.09057144,46962.0,46961.0,0.5572026]
[1641200206443,0.09057144,46962.0,46961.0,0.6319326]
[1641200206641,0.09057144,46962.0,46961.0,0.4369326]
[1641200207446,0.09057144,46962.0,46961.0,0.6339326]
[1641200208647,0.09057144,46962.0,46961.0,0.4369326]
[1641200209348,0.09057144,46962.0,46961.0,0.6329326]
[1641200210651,0.09057144,46962.0,46961.0,0.4369326]
[1641200210850,0.09057144,46962.0,46961.0,0.07473]
[1641200211052,0.09057144,46962.0,46961.0,0.92000658]
[1641200211551,0.09057144,46962.0,46961.0,1.11700658]
[1641200212656,0.09057144,46962.0,46961.0,0.92000658]
[1641200213353,0.09057144,46962.0,46961.0,1.11700658]
[1641200216660,0.09057144,46962.0,46961.0,0.92000658]
[1641200217562,0.09057144,46962.0,46961.0,1.11700658]
[1641200218574,0.09057144,46962.0,46961.0,0.92000658]
[1641200219364,0.09057144,46962.0,46961.0,1.11600658]
[1641200220470,0.09057144,46962.0,46961.0,1.13730138]
[1641200220666,0.09057144,46962.0,46961.0,0.94130138]
[1641200220868,0.09057144,46962.0,46961.0,0.0960248]
[1641200221067,0.09057144,46962.0,46961.0,0.0212948]
[1641200221468,0.93479264,46962.0,46961.0,0.58027087]
[1641200222069,0.09057144,46962.0,46961.0,0.58027087]
[1641200222269,0.09057144,46962.0,46961.0,0.2182948]
[1641200222769,0.09057144,46962.0,46961.0,0.0212948]
[1641200223372,0.09057144,46962.0,46961.0,0.2192948]
[1641200224670,0.09057144,46962.0,46961.0,0.0212948]
[1641200225271,0.09057144,46962.0,46961.0,0.0813248]
[1641200225475,0.09057144,46962.0,46961.0,0.2783248]
[1641200226273,0.93519078,46962.0,46961.0,0.64030087]
[1641200226774,0.09057144,46962.0,46961.0,0.44330087]
[1641200226975,0.09057144,46967.0,46961.0,0.0813248]
[1641200227175,0.09057144,46967.0,46961.0,0.0212948]
[1641200227474,0.09057144,46967.0,46961.0,0.2182948]
[1641200228775,0.09057144,46967.0,46961.0,0.0212948]
[1641200229477,0.09057144,46967.0,46961.0,0.2162948]
[1641200230683,0.09057144,46967.0,46961.0,0.0212948]
[1641200231480,0.09057144,46967.0,46961.0,0.2162948]
[1641200233283,0.09057144,46967.0,46961.0,0.0212948]
[1641200233481,0.09057144,46967.0,46961.0,0.2162948]
[1641200234679,0.09057144,46967.0,46961.0,0.0212948]
[1641200235383,0.09057144,46967.0,46961.0,0.2162948]
[1641200236683,0.09057144,46967.0,46961.0,0.0212948]
[1641200237485,0.09057144,46967.0,46961.0,0.2162948]
[1641200238488,1.44895934,46966.0,46964.0,0.36197607]
[1641200239587,0.09057144,46965.0,46964.0,0.55797607]
[1641200241091,0.09057144,46965.0,46964.0,0.36197607]
[1641200241488,0.09057144,46965.0,46964.0,0.55797607]
[1641200242687,0.09057144,46965.0,46964.0,0.36197607]
[1641200243388,0.14033567,46968.0,46964.0,0.196]
[1641200244190,1.44658354,46966.0,46964.0,0.55826085]
[1641200244691,1.44658354,46966.0,46964.0,0.36226085]
[1641200245590,1.44658354,46966.0,46964.0,0.55826085]
[1641200246790,1.44658354,46966.0,46964.0,0.36226085]
[1641200247390,1.44658354,46966.0,46964.0,0.55726085]
[1641200248689,1.44658354,46966.0,46964.0,0.36226085]
[1641200249391,1.44658354,46966.0,46964.0,0.55826085]
[1641200249592,1.53714875,46967.0,46965.0,0.36226085]
[1641200251506,1.53714875,46967.0,46965.0,0.55726085]
[1641200252906,1.53714875,46967.0,46965.0,0.36226085]
[1641200253407,1.53714875,46967.0,46965.0,0.55726085]
[1641200254711,1.53714875,46967.0,46965.0,0.36226085]
[1641200255409,1.53714875,46967.0,46965.0,0.55626085]
[1641200256809,0.42573376,46978.0,46966.0,0.009794]
[1641200257010,0.4506764,46980.0,46966.0,0.009794]
[1641200257509,0.4506764,46980.0,46969.0,0.02129124]
[1641200257910,0.4506764,46980.0,46969.0,2.23728655]
[1641200258310,0.4506764,46980.0,46973.0,0.14033567]
[1641200258509,0.14033567,46983.0,46973.0,0.20151567]
[1641200259510,0.14033567,46983.0,46973.0,0.39351567]
[1641200260111,0.14033567,46983.0,46975.0,0.36226085]
[1641200261311,0.14033567,46983.0,46977.0,0.36226085]
[1641200262111,0.14033567,46983.0,46978.0,0.009794]
[1641200262514,1.44864287,46979.0,46978.0,0.37205485]
[1641200263412,1.44864287,46979.0,46978.0,0.56405485]
[1641200263612,1.44864287,46980.0,46978.0,0.56405485]
[1641200264612,1.44864287,46981.0,46979.0,0.36226085]
[1641200265413,1.44864287,46981.0,46979.0,0.55426085]
[1641200266717,1.44864287,46981.0,46979.0,0.36226085]
[1641200267521,1.44864287,46981.0,46979.0,0.55426085]
[1641200268720,1.44864287,46981.0,46979.0,0.36226085]
[1641200269521,1.44864287,46981.0,46979.0,0.55426085]
[1641200270524,1.44864287,46981.0,46980.0,0.317816]
[1641200270525,1.30634287,46981.0,46980.0,0.317816]
[1641200270723,1.30634287,46983.0,46980.0,0.317816]
[1641200270925,1.30634287,46983.0,46980.0,0.001]
[1641200271224,1.30634287,46983.0,46979.0,0.60376808]
[1641200271426,1.30634287,46983.0,46980.0,0.195]
[1641200271624,0.0326,46985.0,46980.0,0.195]
[1641200271826,0.0326,46985.0,46982.0,0.60376808]
[1641200272225,0.979,46994.0,46982.0,0.60376808]
[1641200272425,0.02,46995.0,46983.0,0.14033567]
[1641200272627,0.2,46995.0,46983.0,0.20068567]
[1641200273028,0.02,46995.0,46983.0,0.20068567]
[1641200273226,0.09053021,46992.0,46983.0,0.56205494]
[1641200273425,0.09053021,46992.0,46983.0,0.75505494]
[1641200274829,0.09053021,46992.0,46983.0,0.56205494]
[1641200275431,0.09053021,46992.0,46983.0,0.75505494]
[1641200275831,0.09053021,46992.0,46983.0,0.61471927]
[1641200276031,0.18,46990.0,46983.0,0.61471927]
[1641200276230,1.448439,46986.0,46984.0,0.36136927]
[1641200277434,1.448439,46986.0,46984.0,0.55736927]
[1641200277632,1.448439,46986.0,46985.0,0.009794]
[1641200277831,1.448439,46986.0,46985.0,0.03107581]
[1641200278433,0.90415438,46986.0,46985.0,0.03107581]
[1641200278634,0.02,46995.0,46985.0,0.87735113]
[1641200278635,1.44832025,46990.0,46985.0,0.87735113]
[1641200278833,1.44832025,46990.0,46989.0,0.001]
[1641200279436,1.44832025,46990.0,46989.0,0.197]
[1641200279635,0.02,46995.0,46989.0,0.197]
[1641200279836,0.02,46995.0,46989.0,0.196]
[1641200280143,0.02,46995.0,46989.0,0.55674791]
[1641200280538,0.2,46995.0,46991.0,0.14033567]
[1641200281038,0.09052136,46994.0,46991.0,0.14033567]
[1641200281435,0.09052136,46994.0,46991.0,0.33433567]
[1641200282937,0.09052136,46994.0,46991.0,0.14033567]
[1641200283536,0.09052136,46994.0,46991.0,0.33433567]
[1641200283936,1.44827634,46992.0,46991.0,0.33433567]
[1641200284136,1.44827634,46992.0,46991.0,0.33533567]
[1641200284745,1.44827634,46992.0,46991.0,0.14133567]
[1641200285136,1.44827634,46992.0,46991.0,0.16161592]
[1641200285538,1.44827634,46992.0,46991.0,0.35961592]
[1641200285739,1.44827634,46993.0,46991.0,0.72036383]
[1641200286838,1.44827634,46994.0,46992.0,0.36074791]
[1641200287437,1.44827634,46994.0,46992.0,0.55774791]
[1641200289339,1.44827634,46994.0,46992.0,0.36074791]
[1641200289539,1.44827634,46994.0,46992.0,0.55674791]
[1641200290738,1.44827634,46994.0,46992.0,0.36074791]
[1641200290941,0.02,46995.0,46991.0,0.76286243]
[1641200291238,0.02,46995.0,46991.0,0.16161592]
[1641200291440,0.02,46995.0,46991.0,0.35861592]
[1641200292240,1.44828802,46993.0,46991.0,0.35861592]
[1641200292845,1.44828802,46992.0,46991.0,0.16161592]
[1641200293449,1.44828802,46992.0,46991.0,0.35761592]
[1641200294749,1.44828802,46992.0,46991.0,0.16161592]
[1641200295451,1.44828802,46992.0,46991.0,0.35761592]
[1641200295452,0.84344827,46992.0,46991.0,0.35761592]
[1641200296653,0.84344827,46992.0,46991.0,0.16161592]
[1641200297455,0.84344827,46992.0,46991.0,0.35761592]
[1641200297655,0.84344827,46993.0,46991.0,0.35761592]
[1641200297855,0.84344827,46993.0,46991.0,0.43183592]
[1641200298357,0.84344827,46992.0,46991.0,0.43183592]
[1641200298867,0.84344827,46992.0,46991.0,0.23583592]
[1641200299469,0.84344827,46992.0,46991.0,0.43283592]
[1641200300072,0.84344827,46994.0,46991.0,0.43283592]
[1641200300671,0.84344827,46993.0,46991.0,0.43283592]
[1641200300868,0.84344827,46993.0,46991.0,0.23583592]
[1641200301570,0.02,46995.0,46991.0,0.43183592]
[1641200301571,0.84344827,46994.0,46991.0,0.43183592]
[1641200302673,0.84344827,46994.0,46991.0,0.23583592]
[1641200302873,0.84344827,46994.0,46991.0,0.16161592]
[1641200303473,0.84344827,46994.0,46991.0,0.35761592]
[1641200303675,0.84344827,46993.0,46991.0,0.35761592]
[1641200304777,0.84344827,46993.0,46991.0,0.16161592]
[1641200305477,0.84344827,46993.0,46991.0,0.35561592]
[1641200305876,0.84344827,46992.0,46991.0,0.35561592]
[1641200306877,0.84344827,46992.0,46991.0,0.16161592]
[1641200307176,0.84344827,46993.0,46991.0,0.16161592]
[1641200307380,0.84344827,46993.0,46991.0,0.35561592]
[1641200308280,0.84344827,46992.0,46991.0,0.35561592]
[1641200308682,0.84344827,46992.0,46991.0,0.16161592]
[1641200309181,0.84344827,46993.0,46991.0,0.16161592]
[1641200309382,0.84344827,46993.0,46991.0,0.35761592]
[1641200310785,0.84344827,46993.0,46991.0,0.16161592]
[1641200311387,0.84344827,46993.0,46991.0,0.35761592]
[1641200311686,0.02,46995.0,46991.0,0.35761592]
[1641200311887,1.44828802,46993.0,46991.0,0.71836383]
[1641200312887,1.44828802,46993.0,46991.0,0.52236383]
[1641200313287,1.44828802,46992.0,46991.0,0.16161592]
[1641200313488,1.44828802,46992.0,46991.0,0.35661592]
[1641200314792,1.44828802,46992.0,46991.0,0.16161592]
[1641200315391,1.44828802,46992.0,46991.0,0.35861592]
[1641200315692,1.44828802,46994.0,46991.0,0.35861592]
[1641200315894,1.44828802,46994.0,46991.0,0.43350592]
[1641200316695,1.44828802,46994.0,46992.0,0.36103641]
[1641200317493,1.44828802,46994.0,46992.0,0.55903641]
[1641200319399,1.44828802,46994.0,46992.0,0.55603641]
[1641200319598,1.44828802,46993.0,46992.0,0.25373]
[1641200320497,1.44828802,46994.0,46992.0,0.25373]
[1641200320697,1.44828802,46994.0,46992.0,0.05873]
[1641200321496,1.44828802,46994.0,46992.0,0.197]
[1641200322700,1.46828802,46995.0,46993.0,0.36103641]
[1641200323400,1.46828802,46995.0,46993.0,0.55603641]
[1641200323803,1.46828802,46995.0,46994.0,0.36103641]
[1641200323804,0.02,46995.0,46994.0,0.36103641]
[1641200325611,0.02,46995.0,46994.0,0.55603641]
[1641200326212,0.02,46995.0,46994.0,0.195]
[1641200326813,0.02,46995.0,46993.0,0.36103641]
[1641200327414,0.02,46995.0,46993.0,0.55603641]
[1641200328713,0.02,46995.0,46993.0,0.36103641]
[1641200329516,0.02,46995.0,46993.0,0.195]
[1641200330215,0.02,46995.0,46994.0,0.02127837]
[1641200331415,0.02,46995.0,46994.0,0.21627837]
[1641200332918,0.02,46995.0,46994.0,0.02127837]
[1641200333517,0.02,46995.0,46994.0,0.21627837]
[1641200334419,0.02,46995.0,46994.0,0.195]
[1641200334819,0.02,46995.0,46991.0,0.52265334]
[1641200335419,0.02,46995.0,46991.0,0.71765334]
[1641200338921,0.02,46995.0,46991.0,0.52265334]
[1641200339522,0.02,46995.0,46991.0,0.71765334]
[1641200339725,0.02,46995.0,46991.0,0.35661693]
[1641200340625,1.46828802,46995.0,46993.0,0.36103641]
[1641200341424,1.46828802,46995.0,46993.0,0.55603641]
[1641200342925,1.46828802,46995.0,46993.0,0.36103641]
[1641200343426,1.46828802,46995.0,46993.0,0.55603641]
[1641200344828,1.46828802,46995.0,46993.0,0.36103641]
[1641200345428,1.46828802,46995.0,46993.0,0.55603641]
[1641200346329,1.44828802,46994.0,46993.0,0.195]
[1641200346829,1.44828802,46994.0,46992.0,0.36103641]
[1641200347431,1.44828802,46994.0,46992.0,0.55603641]
[1641200348029,1.46828802,46995.0,46993.0,0.36103641]
[1641200349429,1.46828802,46995.0,46993.0,0.55603641]
[1641200350729,1.46828802,46995.0,46993.0,0.36103641]
[1641200351432,1.46828802,46995.0,46993.0,0.55603641]
[1641200354136,0.02,46995.0,46993.0,0.55603641]
[1641200354936,0.02,46995.0,46993.0,0.36103641]
[1641200355438,0.02,46995.0,46993.0,0.55603641]
[1641200356439,0.02,46995.0,46994.0,0.36103641]
[1641200357440,0.02,46995.0,46994.0,0.55603641]
[1641200358441,0.02,46995.0,46994.0,0.195]
[1641200358942,0.02,46995.0,46993.0,0.60124651]
[1641200359442,0.02,46995.0,46993.0,0.79624651]
[1641200360243,0.02,46995.0,46994.0,0.02127821]
[1641200360444,0.02,46995.0,46994.0,0.3821157]
[1641200361143,0.02,46995.0,46994.0,0.02127821]
[1641200361542,0.02,46995.0,46994.0,0.21627821]
[1641200362744,0.02,46995.0,46994.0,0.02127821]
[1641200363444,0.02,46995.0,46994.0,0.21527821]
[1641200364446,0.02,46995.0,46994.0,0.57597925]
[1641200364646,0.02,46995.0,46994.0,0.55470104]
[1641200364847,0.02,46995.0,46994.0,0.36070104]
[1641200365249,0.02,46995.0,46994.0,0.38198075]
[1641200365450,0.02,46995.0,46994.0,0.57598075]
[1641200366848,0.02,46995.0,46994.0,0.38198075]
[1641200367448,0.02,46995.0,46994.0,0.57598075]
[1641200368249,0.02,46995.0,46994.0,0.21527971]
[1641200369052,0.02,46995.0,46994.0,0.57598544]
[1641200369453,0.02,46995.0,46994.0,0.41027971]
[1641200369753,0.02,46995.0,46994.0,0.81752622]
[1641200370955,0.02,46995.0,46994.0,0.62252622]
[1641200371557,0.02,46995.0,46994.0,0.81652622]
[1641200372159,0.02,46995.0,46994.0,0.5758796]
[1641200372959,0.02,46995.0,46994.0,0.3818796]
[1641200373165,0.02,46995.0,46994.0,0.02127971]
[1641200373562,0.02,46995.0,46994.0,0.21627971]
[1641200374870,0.02,46995.0,46994.0,0.02127971]
[1641200375471,0.02,46995.0,46994.0,0.21627971]
[1641200375972,0.02,46995.0,46994.0,0.5768796]
[1641200376771,0.02,46995.0,46994.0,0.3818796]
[1641200377572,0.02,46995.0,46994.0,0.5778796]
[1641200378275,0.02,46995.0,46994.0,0.55659989]
[1641200378976,0.09264,46995.0,46994.0,0.36059989]
[1641200379176,0.09264,46995.0,46976.0,0.16162359]
[1641200379177,0.25426359,46995.0,46976.0,0.16162359]
[1641200379378,0.18,46986.0,46976.0,0.14033567]
[1641200380476,0.11199647,46992.0,46990.0,0.84181033]
[1641200380678,0.16033567,46995.0,46991.0,0.60129309]
[1641200380878,0.001,46992.0,46991.0,0.60129309]
[1641200381482,0.001,46992.0,46991.0,0.186]
[1641200382979,0.001,46992.0,46988.0,0.14033567]
[1641200383182,1.44828802,46993.0,46988.0,0.14033567]
[1641200383483,1.44828802,46993.0,46988.0,0.32933567]
[1641200384083,1.62828802,46994.0,46988.0,0.32933567]
[1641200384881,1.62828802,46994.0,46988.0,0.14033567]
[1641200385083,1.44828802,46992.0,46988.0,0.14033567]
[1641200385482,1.44828802,46992.0,46988.0,0.32333567]
[1641200386487,1.44828802,46991.0,46988.0,0.32333567]
[1641200386885,1.44828802,46991.0,46988.0,0.14033567]
[1641200387586,1.44828802,46992.0,46988.0,0.32133567]
[1641200388588,1.62828802,46991.0,46988.0,0.32133567]
[1641200388788,1.44828802,46991.0,46988.0,0.14033567]
[1641200389187,1.44828802,46990.0,46988.0,0.14033567]
[1641200389587,1.44828802,46990.0,46988.0,0.32233567]
[1641200390189,1.44828802,46989.0,46988.0,0.32233567]
[1641200390989,1.44828802,46990.0,46988.0,0.14033567]
[1641200391393,0.18,46989.0,46988.0,0.14033567]
[1641200391588,0.18,46989.0,46988.0,0.32833567]
[1641200391789,1.44828802,46990.0,46988.0,0.32833567]
[1641200392790,1.44828802,46990.0,46988.0,0.14033567]
[1641200393490,1.44828802,46990.0,46988.0,0.31733567]
[1641200393690,1.65897221,46990.0,46988.0,0.31733567]
[1641200394992,0.09054804,46989.0,46988.0,0.14033567]
[1641200395490,0.09054804,46989.0,46988.0,0.32233567]
[1641200396692,1.71883606,46989.0,46988.0,0.32233567]
[1641200397096,1.71883606,46989.0,46988.0,0.14033567]
[1641200397298,0.27054804,46989.0,46988.0,0.14033567]
[1641200397499,0.09054804,46989.0,46988.0,0.32033567]
[1641200398700,0.09054804,46989.0,46988.0,0.09838831]
[1641200398899,0.09054804,46989.0,46982.0,0.086694]
[1641200399600,0.18,46988.0,46982.0,0.274694]
[1641200400502,0.36164459,46983.0,46982.0,0.274694]
[1641200401000,0.36164459,46983.0,46982.0,0.086694]
[1641200401601,0.36164459,46983.0,46982.0,0.279694]
[1641200403003,0.36164459,46985.0,46982.0,0.2074071]
[1641200403202,0.36164459,46985.0,46982.0,0.086694]
[1641200403603,0.36164459,46985.0,46982.0,0.277694]
[1641200404806,0.36164459,46985.0,46982.0,0.086694]
[1641200405506,0.36164459,46985.0,46982.0,0.283694]
[1641200406610,0.36164459,46985.0,46982.0,0.2739]
[1641200407012,0.36164459,46985.0,46982.0,0.0769]